[Event "45th FIDE Olympiad 2024"]
[Site "Budapest"]
[Date "2024.09.12"]
[Round "2"]
[White "Semeko, Lumen Paco"]
[Black "Vaz, Jose Carlos"]
[Result "1/2-1/2"]
[ECO "A01"]
[WhiteElo "1740"]
[BlackElo "1909"]
[Annotator "NA"]
[PlyCount "133"]
[EventDate "2024.09.05"]
[EventType "team-tourn"]
[EventCountry "HUN"]
[SourceTitle "playchess.com"]
[Source "ChessBase"]
[SourceQuality "1"]
[WhiteTeam "Togo"]
[BlackTeam "Cape Verde"]
[WhiteTeamCountry "TOG"]
[TimeControl "40/5400+30:1800+30"]

1. Nf3 Nc6 2. b3 e5 3. Bb2 f6 4. e3 Nge7 5. g3 d5 6. h3 Be6 7. Bg2 Qd7 8. d3 O-O-O 9. Nbd2 g5 10. c3 h5 11. Qc2 Kb8 12. O-O-O Nc8 13. e4 Bg7 14. b4 d4 15. Nb3 dxc3 16. Bxc3 Qe7 17. a3 a5 18. Nc5 Bf7 19. Kb2 b6 20. Na6+ Kb7 21. b5 N6a7 22. a4 c6 23. Bxa5 cxb5 24. Bb4 Qd7 25. axb5 Nxb5 26. Ra1 Qxd3 27. Qxd3 Rxd3 28. Bf1 Rxf3 29. Bxb5 Na7 30. Bf1 Rxf2+ 31. Kc1 Rc8+ 32. Kd1 Nc6 33. Ke1 Rb2 34. Ba3 Rc2 35. Nb4 Nxb4 36. Bxb4 Bc4 37. Rd1 Bxf1 38. Rxf1 R2c4 39. Rd7+ R8c7 40. Rxc7+ Kxc7 41. Be7 Rc1+ 42. Ke2 Rxf1 43. Kxf1 Kd7 44. Bb4 Ke6 45. g4 hxg4 46. hxg4 Kf7 47. Ke2 Bf8 48. Bc3 Ke6 49. Kd3 Kd7 50. Kc4 Kc6 51. Bd2 b5+ 52. Kb3 Bc5 53. Ba5 f5 54. exf5 e4 55. Bd8 Be3 56. f6 Bc5 57. f7 Kd7 58. Bxg5 Ke6 59. Be3 Bf8 60. Kc3 Kd5 61. g5 b4+ 62. Kb3 Ke6 63. Kc4 Kxf7 64. Kd4 b3 65. Kc3 Kg6 66. Kxb3 Kf5 67. Kc4 1/2-1/2

[Event "45th FIDE Olympiad 2024"]
[Site "Budapest"]
[Date "2024.09.12"]
[Round "2.1"]
[White "Caruana, Fabiano"]
[Black "Tin, Jingyao"]
[Result "1-0"]
[ECO "C54"]
[WhiteElo "2798"]
[BlackElo "2580"]
[Annotator "TA"]
[PlyCount "63"]
[EventDate "2024.09.05"]
[EventType "team-tourn"]
[EventCountry "HUN"]
[SourceTitle "playchess.com"]
[Source "ChessBase"]
[SourceQuality "1"]
[WhiteTeam "United States of America"]
[BlackTeam "Singapore"]
[BlackTeamCountry "SIN"]
[TimeControl "40/5400+30:1800+30"]

{[%evp 13,63,14,8,9,16,9,20,17,22,18,22,29,21,8,27,21,18,19,22,41,26,18,9,12,24,24,39,45,441,435,424,439,409,411,1113,1122,1219,1207,1284,1267,1063,1017,1016,697,1004,993,1545,1543,29989,29990,29990,29991]} 1. e4 {[%emt 0:00:05]} e5 {[%emt 0:00:08]} 2. Nf3 {[%emt 0:00:04]} Nc6 {[%emt 0:00:06]} 3. Bc4 {[%emt 0:00:04]} Nf6 {[%emt 0:00:13]} 4. d3 {[%emt 0:00:05]} Bc5 {[%emt 0:00:14]} 5. O-O {[%emt 0:00:07]} d6 {[%emt 0:00:20]} 6. c3 {[%emt 0:00:07]} O-O {[%emt 0:00:58]} 7. h3 {[%emt 0:00:17]} a6 {[%emt 0:00:37]} 8. a4 {[%emt 0:00:19]} h6 {[%emt 0:00:36]} 9. Re1 {[%emt 0:01:23]} Re8 {[%emt 0:00:57]} 10. b4 {[%emt 0:01:18][%cal Bb2b4,Bb4b5][%mdl 32] The position is equal.} Ba7 {[%emt 0:00:20]} 11. Nbd2 {[%emt 0:00:19]} Be6 {[%emt 0:00:53]} 12. Bxe6 {[%emt 0:00:26]} Rxe6 {[%emt 0:00:37]} 13. Bb2 {[%emt 0:01:16]} d5 {[%emt 0:06:45]} 14. b5 {[%emt 0:05:19] [#] Threatens to win with exd5.} Ne7 {[%emt 0:05:49]} 15. exd5 {[%emt 0:01:33]} Qxd5 {[%emt 0:04:16]} 16. c4 {[%emt 0:06:35]} Qxd3 {[%emt 0:03:22]} 17. Nxe5 {[%emt 0:07:21]} Qf5 {[%emt 0:03:57]} 18. Qf3 {[%emt 0:02:54]} Rd8 {[%emt 0:07:42]} 19. Nb3 {[%emt 0:00:30][%cal Bd2b3,Bb3d4,Bd4e6][%mdl 32]} (19. Qxb7 $2 Bxf2+ (19... Rxd2 20. Qxa7 Rxb2 21. Qd4 $19) 20. Kh1 Bxe1 $19 (20... Rxd2 $2 21. Red1 $19)) 19... c6 {[%emt 0:09:51]} 20. c5 {[%emt 0:09:10] And now b6 would win.} cxb5 {[%emt 0:23:31][%mdl 8192] This move loses the game for Black.} (20... Bb8 $14) 21. Qxb7 $18 {[%emt 0:07:21]} Qc2 {[%emt 0:03:10]} 22. Nd4 {[%emt 0:01:49]} (22. axb5 Qxb2 (22... Qxb3 23. bxa6 Rb8 24. Qxa7 $11) 23. Nc6 Rxe1+ 24. Rxe1 Nxc6 25. bxc6 Bxc5 (25... Qc3 26. Rc1 $16) 26. Nxc5 Qc3 $11) 22... Qxc5 {[%emt 0:01:11]} 23. Nxe6 {[%emt 0:01:11]} Qxf2+ {[%emt 0:08:58]} (23... fxe6 $142 24. Rf1 (24. Qxa6 Qxf2+ 25. Kh1 Rd2 $11) 24... Bb8 25. Qxa6 Kh7) 24. Kh1 {[%emt 0:06:04]} fxe6 {[%emt 0:01:20]} 25. Qxe7 {[%emt 0:02:21]} Rd2 {[%emt 0:00:08]} 26. Qf7+ {[%emt 0:00:38]} Kh8 {[%emt 0:00:38]} 27. Ng6+ {[%emt 0:03:01][%cal Be5g6,Bg6f8,Bf8e6,Be6g5][%mdl 32]} Kh7 {[%emt 0:00:05]} 28. Nf8+ {[%emt 0:00:03]} Kh8 {[%emt 0:00:04] [#]} 29. Qg6 {[%emt 0:00:17]} Rxb2 {[%emt 0:01:39]} (29... Qf5 30. Bxf6) 30. Nxe6 {[%emt 0:00:40]} ({Weaker is} 30. Rxe6 Kg8 $18) 30... Nh5 {[%emt 0:01:40]} 31. Qe8+ {[%emt 0:00:07]} (31. Qxh5 $2 Qxg2#) 31... Kh7 {[%emt 0:00:03]} 32. Ng5+ {[%emt 0:00:02] Weighted Error Value: White=0.02 (flawless) /Black=0.57.  Loses game:     	---       	Black=1      Mistake:       	---       	Black=1      OK:         	White=7     	Black=7      Best:        	White=2     	Black=1} (32. Qxh5 $2 Qxg2#) 1-0

[Event "45th FIDE Olympiad 2024"]
[Site "Budapest"]
[Date "2024.09.12"]
[Round "2.1"]
[White "Ah Kye, Benitot"]
[Black "Michaelides, Konstantinos"]
[Result "0-1"]
[ECO "C01"]
[WhiteElo "1815"]
[BlackElo "2297"]
[Annotator "ChessBase"]
[PlyCount "72"]
[EventDate "2024.09.05"]
[EventType "team-tourn"]
[EventCountry "HUN"]
[SourceTitle "playchess.com"]
[Source "ChessBase"]
[SourceQuality "1"]
[WhiteTeam "Mauritius"]
[BlackTeam "Cyprus"]
[WhiteTeamCountry "MRI"]
[BlackTeamCountry "CYP"]
[TimeControl "40/5400+30:1800+30"]

1. e4 e6 2. d4 d5 3. Nc3 Bb4 4. exd5 exd5 5. Bd3 Nc6 6. Nf3 Nge7 7. O-O Bg4 8. Nb5 a6 9. c3 axb5 10. cxb4 Nxd4 11. Be3 Nxf3+ 12. gxf3 Bh5 13. Bc5 O-O 14. Re1 Re8 15. Re5 Bg6 16. Bxb5 c6 17. Qe2 Nf5 18. Rxe8+ Qxe8 19. Qxe8+ Rxe8 20. Bf1 Nh4 21. b5 Nxf3+ 22. Kg2 Be4 23. bxc6 Re6 24. Kg3 Rxc6 25. Rc1 b6 26. Be3 Rg6+ 27. Kf4 Rf6+ 28. Kg3 h5 29. h3 d4 30. Rc4 h4+ 31. Kg4 Ne5+ 32. Kxh4 Nxc4 33. Bxd4 Rd6 34. Bc3 Nd2 35. Be2 Bf3 36. Ba6 Ne4 0-1

[Event "45th FIDE Olympiad 2024"]
[Site "Budapest"]
[Date "2024.09.12"]
[Round "2.2"]
[White "Siddharth, Jagadeesh"]
[Black "Dominguez Perez, Leinier"]
[Result "0-1"]
[ECO "C85"]
[WhiteElo "2514"]
[BlackElo "2748"]
[Annotator "TA"]
[PlyCount "114"]
[EventDate "2024.09.05"]
[EventType "team-tourn"]
[EventCountry "HUN"]
[SourceTitle "playchess.com"]
[Source "ChessBase"]
[SourceQuality "1"]
[WhiteTeam "Singapore"]
[BlackTeam "United States of America"]
[WhiteTeamCountry "SIN"]
[TimeControl "40/5400+30:1800+30"]

{[%evp 32,114,0,0,0,0,0,0,0,0,0,0,0,0,0,0,0,0,0,0,0,0,0,0,0,0,0,0,0,0,0,0,0,0,0,0,0,0,0,0,0,0,0,0,0,0,0,0,0,0,0,0,0,0,0,0,0,-2924,-1129,-5061,-5061,-3740,-2926,-2020,-1484,-29975,-29976,-29976,-29977,-29977,-29978,-29978,-29979,-29979,-29980,-29980,-29980,-29980,-29981,-29981,-29981,-29981,-29980,-29982,-29983]} 1. e4 {[%emt 0:00:04]} e5 {[%emt 0:00:14]} 2. Nf3 {[%emt 0:00:06]} Nc6 {[%emt 0:00:13]} 3. Bb5 {[%emt 0:00:05]} a6 {[%emt 0:00:18]} 4. Ba4 {[%emt 0:00:06]} Nf6 {[%emt 0:00:09]} 5. O-O {[%emt 0:00:05]} Be7 {[%emt 0:00:17]} 6. Bxc6 {[%emt 0:03:18]} dxc6 {[%emt 0:00:10]} 7. Nc3 {[%emt 0:00:05]} Bg4 {[%emt 0:17:30]} 8. h3 {[%emt 0:00:29]} Bh5 {[%emt 0:01:12]} 9. g4 {[%emt 0:08:22] The old main line.} Bg6 {[%emt 0:00:37]} 10. Nxe5 {[%emt 0:00:12] C85: Closed Ruy Lopez: Deferred Exchange Variation.} Nxe4 {[%emt 0:00:36]} 11. Nxg6 {[%emt 0:02:09]} Nxc3 {[%emt 0:00:08]} 12. dxc3 {[%emt 0:00:06]} hxg6 {[%emt 0:00:07]} 13. Kg2 {[%emt 0:13:59]} O-O $146 {[%emt 0:06:15]} ({Predecessor:} 13... Qd5+ 14. Qxd5 cxd5 15. Bf4 Kd7 16. Rad1 Kc6 17. Rfe1 Rae8 18. c4 dxc4 19. Re4 b5 {½-½ Sidenko,A (2435)-Van Tricht,M (2366) WC-2014-S-00002}) 14. Bf4 {[%emt 0:00:00]} Bd6 {[%emt 0:06:02]} 15. Bxd6 {[%emt 0:00:00]} cxd6 {[%emt 0:00:58]} 16. Qd4 {[%emt 0:00:00]} Re8 {[%emt 0:05:34]} 17. Rfe1 {[%emt 0:02:23]} d5 {[%emt 0:03:57]} 18. Re3 {[%emt 0:07:37]} Rxe3 {[%emt 0:05:10]} 19. Qxe3 {[%emt 0:02:17]} Qe8 {[%emt 0:01:38]} 20. Re1 {[%emt 0:00:00]} Qxe3 {[%emt 0:02:03]} 21. Rxe3 {[%emt 0:00:00]} Kf8 {[%emt 0:00:42]} 22. h4 {[%emt 0:06:22]} f6 {[%emt 0:19:31]} 23. f4 {[%emt 0:01:23]} Kf7 {[%emt 0:00:00]} 24. Kf3 {[%emt 0:11:53]} Rh8 {[%emt 0:00:00]} 25. Kg3 {[%emt 0:00:18]} a5 {[%emt 0:00:00]} 26. a4 {[%emt 0:01:29]} Rb8 {[%emt 0:00:00]} 27. Kf3 {[%emt 0:02:39]} Rh8 {[%emt 0:09:23]} 28. Kg3 {[%emt 0:02:09]} Rb8 {[%emt 0:01:04]} 29. Kf3 {[%emt 0:00:05]} Rd8 {[%emt 0:01:07]} 30. Re1 {[%emt 0:02:29]} Rh8 {[%emt 0:01:43]} 31. Kg3 {[%emt 0:00:20]} Rb8 {[%emt 0:00:18]} 32. b3 {[%emt 0:03:46]} Re8 {[%emt 0:01:41]} (32... b5 $5 33. Ra1 $8 b4 34. cxb4 Rxb4 $17) 33. Rxe8 {[%emt 0:19:16]} Kxe8 {[%emt 0:00:04]} 34. Kf3 {[%emt 0:02:54]} Kd7 {[%emt 0:02:15]} 35. Ke3 {[%emt 0:00:12]} Kd6 {[%emt 0:01:39]} 36. Kd4 {[%emt 0:03:51]} b5 {[%emt 0:00:36]} 37. Ke3 {[%emt 0:01:45]} (37. axb5 cxb5 38. c4 dxc4 39. bxc4 Kc6 40. cxb5+ Kxb5 $19) 37... Kc5 {[%emt 0:15:10]} 38. Kd3 $1 {[%emt 0:00:13]} g5 {[%emt 0:00:20]} 39. hxg5 {[%emt 0:04:05]} fxg5 {[%emt 0:00:06]} 40. f5 {[%emt 0:01:05]} (40. fxg5 bxa4 41. bxa4 g6 $17) 40... Kd6 {[%emt 0:00:05]} 41. Kd4 {[%emt 0:30:54]} c5+ {[%emt 0:30:09]} 42. Ke3 $1 {[%emt 0:00:00]} Kc6 {[%emt 0:00:00]} 43. Kd3 {[%emt 0:00:00]} c4+ {[%emt 0:00:00]} 44. Ke3 $2 {[%emt 0:00:00][%mdl 8192]} (44. Kd4 $2 bxa4 45. bxa4 Kd6 $19) (44. Kd2 $11) 44... bxa4 $19 {[%emt 0:00:00]} 45. bxa4 {[%emt 0:00:00]} Kc5 {[%emt 0:00:00]} 46. Kf3 {[%emt 0:00:00]} d4 {[%emt 0:00:00]} 47. Ke4 {[%emt 0:00:00]} dxc3 {[%emt 0:00:00]} 48. f6 {[%emt 0:00:00]} gxf6 {[%emt 0:00:00]} 49. Kf5 {[%emt 0:00:00]} Kb4 {[%emt 0:00:00]} 50. Kxf6 {[%emt 0:00:00]} Ka3 {[%emt 0:00:00]} 51. Kxg5 {[%emt 0:00:00]} Kb2 {[%emt 0:00:00]} ({Worse is} 51... Kxa4 52. Kf5 Kb5 53. g5 $11) 52. Kf5 {[%emt 0:00:00]} Kxc2 {[%emt 0:00:00]} 53. g5 {[%emt 0:00:00]} Kb2 {[%emt 0:00:00]} 54. g6 {[%emt 0:00:00]} c2 {[%emt 0:00:00]} 55. g7 {[%emt 0:00:00]} c1=Q {[%emt 0:00:00]} (55... c1=R $2 {loses.} 56. g8=Q $18 (56. g8=R $2 {is the wrong capture.} c3 $19)) 56. g8=Q {[%emt 0:00:00]} Qc2+ {[%emt 0:00:37]} 57. Ke6 {[%emt 0:00:00]} c3 {[%emt 0:00:40]} 0-1

[Event "45th FIDE Olympiad 2024"]
[Site "Budapest"]
[Date "2024.09.12"]
[Round "2.2"]
[White "Isaakidis, Alexandros"]
[Black "Chinasamy, Devarajen"]
[Result "1-0"]
[ECO "B70"]
[WhiteElo "2155"]
[BlackElo "1975"]
[Annotator "ChessBase"]
[PlyCount "69"]
[EventDate "2024.09.05"]
[EventType "team-tourn"]
[EventCountry "HUN"]
[SourceTitle "playchess.com"]
[Source "ChessBase"]
[SourceQuality "1"]
[WhiteTeam "Cyprus"]
[BlackTeam "Mauritius"]
[WhiteTeamCountry "CYP"]
[BlackTeamCountry "MRI"]
[TimeControl "40/5400+30:1800+30"]

1. e4 c5 2. Nf3 g6 3. d4 cxd4 4. Nxd4 Nf6 5. Nc3 Nc6 6. Nb3 Bg7 7. Be2 O-O 8. Bg5 d6 9. O-O h6 10. Be3 Bd7 11. f4 a6 12. Bf3 Rc8 13. Nd5 Nxd5 14. exd5 Na5 15. Nxa5 Qxa5 16. c3 b5 17. a3 Qc7 18. Qd2 Rcd8 19. Rae1 Rde8 20. Rf2 Bc8 21. Kh1 Bb7 22. f5 g5 23. h4 g4 24. Bxh6 f6 25. Bxg7 Kxg7 26. Re4 Rh8 27. Rxg4+ Kf7 28. g3 Qc5 29. Kg2 Bc8 30. Qd3 Bd7 31. Rg6 Rc8 32. Re2 Rh7 33. Qe4 Kf8 34. Qg4 Kf7 35. Rxf6+ 1-0

[Event "45th FIDE Olympiad 2024"]
[Site "Budapest"]
[Date "2024.09.12"]
[Round "2.3"]
[White "Aronian, Levon"]
[Black "Wong, Zhenyong Jayden"]
[Result "1-0"]
[ECO "B48"]
[WhiteElo "2729"]
[BlackElo "2397"]
[Annotator "RC"]
[PlyCount "75"]
[EventDate "2024.09.05"]
[EventType "team-tourn"]
[EventCountry "HUN"]
[SourceTitle "playchess.com"]
[Source "ChessBase"]
[SourceQuality "1"]
[WhiteTeam "United States of America"]
[BlackTeam "Singapore"]
[BlackTeamCountry "SIN"]
[TimeControl "40/5400+30:1800+30"]

1. e4 {[%emt 0:00:07]} c5 {[%emt 0:00:13]} 2. Nf3 {[%emt 0:00:06]} e6 {[%emt 0:00:07]} 3. d4 {[%emt 0:00:05]} cxd4 {[%emt 0:00:11]} 4. Nxd4 {[%emt 0:00:06]} Nc6 {[%emt 0:00:10]} 5. Nc3 {[%emt 0:00:07]} Qc7 {[%emt 0:00:36]} 6. Be3 {[%emt 0:00:07]} a6 {[%emt 0:00:18]} 7. Qd2 {[%emt 0:00:06]} Nf6 {[%emt 0:01:31]} 8. O-O-O {[%emt 0:00:09]} Be7 {[%emt 0:02:22]} 9. g4 {[%emt 0:00:40]} Nxg4 {[%emt 0:06:23]} 10. Bf4 {[%emt 0:00:11]} Nge5 {[%emt 0:10:03]} 11. Nxc6 {[%emt 0:01:17]} bxc6 {[%emt 0:09:29]} 12. Rg1 {[%emt 0:00:05]} g5 {[%emt 0:08:09]} 13. Rxg5 {[%emt 0:00:06]} Bxg5 {[%emt 0:06:04]} 14. Bxg5 {[%emt 0:00:05]} Nf3 {[%emt 0:06:01]} 15. Qe3 {[%emt 0:00:19]} Nxg5 {[%emt 0:01:35]} 16. Qxg5 {[%emt 0:00:12]} d6 {[%emt 0:10:47]} 17. f4 {[%emt 0:01:30]} Qe7 {[%emt 0:02:01]} 18. Qg1 {[%emt 0:13:47]} Kf8 {[%emt 0:02:37]} 19. e5 {[%emt 0:04:30]} Rg8 {[%emt 0:15:08]} 20. Qb6 {[%emt 0:05:02]} d5 {[%emt 0:00:22]} 21. Ne4 {[%emt 0:00:14]} Rg6 {[%emt 0:08:00]} 22. Nd6 {[%emt 0:03:18]} Bd7 {[%emt 0:00:41]} 23. Bd3 {[%emt 0:03:12]} Rg2 {[%emt 0:01:36]} 24. Kb1 {[%emt 0:01:09]} Be8 {[%emt 0:01:02]} 25. f5 {[%emt 0:12:14]} Qa7 {[%emt 0:02:00]} 26. Qb4 {[%emt 0:00:14]} Rg1 {[%emt 0:01:19]} 27. Be2 {[%emt 0:14:50]} Rxd1+ {[%emt 0:01:28]} 28. Bxd1 {[%emt 0:01:01]} Qg1 {[%emt 0:00:39]} 29. a3 {[%emt 0:01:08]} Qxd1+ {[%emt 0:01:15]} 30. Ka2 {[%emt 0:00:10]} exf5 {[%emt 0:01:26]} 31. Nxf5+ {[%emt 0:02:21]} Kg8 {[%emt 0:00:57]} 32. Qe7 {[%emt 0:07:32]} h6 {[%emt 0:00:45]} 33. Nxh6+ {[%emt 0:00:24]} Kh7 {[%emt 0:00:26]} 34. Qh4 {[%emt 0:04:40]} Kg6 {[%emt 0:01:17]} 35. Qf6+ {[%emt 0:01:09]} Kh5 {[%emt 0:00:09]} 36. Nf5 {[%emt 0:00:09]} Qf3 {[%emt 0:00:51]} 37. Qh6+ {[%emt 0:00:14]} Kg4 {[%emt 0:00:09]} 38. Ne3+ {[%emt 0:00:03]} 1-0

[Event "45th FIDE Olympiad 2024"]
[Site "Budapest"]
[Date "2024.09.12"]
[Round "2.3"]
[White "Lee Luen Mang, Stefan"]
[Black "Antoniou, Rafail"]
[Result "1/2-1/2"]
[ECO "B44"]
[WhiteElo "1803"]
[BlackElo "2007"]
[Annotator "NA"]
[PlyCount "205"]
[EventDate "2024.09.05"]
[EventType "team-tourn"]
[EventCountry "HUN"]
[SourceTitle "playchess.com"]
[Source "ChessBase"]
[SourceQuality "1"]
[WhiteTeam "Mauritius"]
[BlackTeam "Cyprus"]
[WhiteTeamCountry "MRI"]
[BlackTeamCountry "CYP"]
[TimeControl "40/5400+30:1800+30"]

1. e4 c5 2. Nf3 e6 3. g3 Nc6 4. Bg2 d5 5. exd5 exd5 6. O-O Nf6 7. d4 cxd4 8. Nxd4 Bg4 9. Qd3 Qd7 10. a3 Be7 11. Nc3 O-O 12. Bf4 Rac8 13. Rfe1 Rfd8 14. Bg5 h6 15. Bf4 Bf8 16. Rac1 Nxd4 17. Qxd4 Rc4 18. Qd2 d4 19. Ne2 Bf5 20. c3 dxc3 21. Qxd7 Nxd7 22. Rxc3 Rxc3 23. Nxc3 Nc5 24. Re2 b6 25. h4 Be6 26. Rd2 Rxd2 27. Bxd2 Nd3 28. b4 a5 29. bxa5 bxa5 30. Nd5 a4 31. Be4 Ne5 32. Bb4 Bxd5 33. Bxd5 Bxb4 34. axb4 Kf8 35. f4 Nd3 36. b5 Ke7 37. b6 Kd6 38. b7 Kc7 39. b8=R Kxb8 40. Bxf7 Kc7 41. f5 Kd6 42. Kg2 Ke5 43. Be6 Nc5 44. Bc4 Kxf5 45. Kf3 Ke5 46. Ke3 Ne4 47. g4 g5 48. hxg5 hxg5 49. Kd3 Nd6 50. Ba6 Kd5 51. Kc3 Kc5 52. Bd3 Nb5+ 53. Kb2 Kb4 54. Bc2 Nd6 55. Bd3 Nc4+ 56. Ka2 Kc3 57. Bf5 Ne3 58. Ka3 Kd4 59. Bc8 Nc4+ 60. Kb4 a3 61. Kb3 Nd6 62. Bd7 Nc4 63. Be6 Kc5 64. Bg8 Kd4 65. Be6 Ne3 66. Kxa3 Ke5 67. Bc8 Kf4 68. Kb4 Nxg4 69. Kc5 Ne3 70. Bh3 Ke5 71. Kb4 Kd4 72. Kb5 Nd5 73. Kc6 Nf4 74. Bg4 Ng6 75. Kd6 Ne5 76. Bh3 Ke4 77. Ke6 Kf4 78. Kf6 Ng4+ 79. Kg6 Ne3 80. Bc8 Nd5 81. Bh3 Ne7+ 82. Kf6 Nc6 83. Kg6 Nd4 84. Kf6 Ne2 85. Bc8 Ng1 86. Bd7 Ne2 87. Bc8 Ng3 88. Bd7 Nh1 89. Bc8 Nf2 90. Bd7 Ng4+ 91. Kg7 Ne3 92. Kf6 Nc4 93. Bh3 Ne5 94. Bc8 Nd3 95. Kg6 Nb4 96. Bh3 Nd5 97. Bd7 Ne7+ 98. Kf6 Nd5+ 99. Kg6 Nb6 100. Bh3 Nc4 101. Kf6 Nd2 102. Bc8 Ne4+ 103. Kg6 1/2-1/2

[Event "45th FIDE Olympiad 2024"]
[Site "Budapest"]
[Date "2024.09.12"]
[Round "2.4"]
[White "Goh, Wei Ming Kevin"]
[Black "Robson, Ray"]
[Result "0-1"]
[ECO "B88"]
[WhiteElo "2449"]
[BlackElo "2700"]
[Annotator "TA"]
[PlyCount "136"]
[EventDate "2024.09.05"]
[EventType "team-tourn"]
[EventCountry "HUN"]
[SourceTitle "playchess.com"]
[Source "ChessBase"]
[SourceQuality "1"]
[WhiteTeam "Singapore"]
[BlackTeam "United States of America"]
[WhiteTeamCountry "SIN"]
[TimeControl "40/5400+30:1800+30"]

{[%evp 60,136,0,0,0,0,0,0,0,0,0,0,0,0,0,0,0,0,0,0,0,0,0,0,0,0,0,0,0,0,0,0,0,0,0,0,0,0,0,0,0,0,0,0,0,0,0,0,0,0,0,0,0,0,0,0,0,0,0,0,0,0,0,-93,-93,-93,-93,-93,-93,-93,-93,-29981,-29982,-29982,-29980,-29980,-29981,-29987,-29988]} 1. e4 {[%emt 0:00:06]} c5 {[%emt 0:00:15]} 2. Nf3 {[%emt 0:00:10]} d6 {[%emt 0:00:13]} 3. d4 {[%emt 0:00:34]} cxd4 {[%emt 0:00:19]} 4. Nxd4 {[%emt 0:00:05]} Nf6 {[%emt 0:00:17]} 5. Nc3 {[%emt 0:00:06]} a6 {[%emt 0:00:19]} 6. Bc4 {[%emt 0:00:30]} e6 {[%emt 0:01:04]} 7. a4 {[%emt 0:00:39]} Be7 {[%emt 0:05:14]} 8. O-O {[%emt 0:01:20]} O-O {[%emt 0:01:35]} 9. Be3 {[%emt 0:01:29]} Nc6 {[%emt 0:11:28]} 10. Qe2 {[%emt 0:00:23] 10.Kh1 is vanishing.} Bd7 {[%emt 0:02:48]} 11. Nxc6 {[%emt 0:02:29] B88: Sicilian: Sozin Attack.} Bxc6 {[%emt 0:00:45]} 12. a5 {[%emt 0:00:28]} Nxe4 {[%emt 0:06:33]} 13. Nxe4 {[%emt 0:00:31]} d5 {[%emt 0:00:16]} 14. Bb6 {[%emt 0:00:14]} Qc8 {[%emt 0:02:28]} 15. Bd3 {[%emt 0:00:07]} dxe4 {[%emt 0:00:06]} 16. Bxe4 {[%emt 0:00:02]} Bb5 {[%emt 0:04:21]} 17. Bd3 {[%emt 0:00:21]} Bxd3 {[%emt 0:01:15]} 18. Qxd3 {[%emt 0:00:05]} Bc5 {[%emt 0:01:46]} 19. Bxc5 {[%emt 0:02:53]} Qxc5 {[%emt 0:03:48]} 20. Rfd1 {[%emt 0:00:10]} Qc7 {[%emt 0:06:57]} 21. Qe4 {[%emt 0:04:07]} Rfd8 $146 {[%emt 0:10:01]} ({Predecessor:} 21... Rad8 22. g3 g6 23. c4 Rd6 24. Rxd6 Qxd6 25. Qxb7 Rb8 {½-½ Aravindh,C (2646)-Ter Sahakyan,S (2643) Sant Boi de Llobregat op 4th 2023 (7)}) 22. g3 {[%emt 0:00:29]} h6 {[%emt 0:02:07]} 23. c4 {[%emt 0:08:06]} Rac8 {[%emt 0:09:50]} 24. b4 {[%emt 0:06:57]} Rd7 {[%emt 0:00:17]} 25. b5 {[%emt 0:30:21]} Qxc4 {[%emt 0:03:14]} 26. Qxc4 {[%emt 0:00:49]} Rxd1+ {[%emt 0:00:07]} 27. Rxd1 {[%emt 0:00:03]} Rxc4 {[%emt 0:00:09]} 28. bxa6 {[%emt 0:00:02]} bxa6 {[%emt 0:00:09]} 29. Rd6 {[%emt 0:00:16]} Ra4 {[%emt 0:00:56]} 30. Rxa6 {[%emt 0:00:06]} g5 {[%emt 0:00:16]} 31. h3 {[%emt 0:00:35]} h5 {[%emt 0:04:06]} 32. Kg2 {[%emt 0:01:06]} Kg7 {[%emt 0:11:18]} 33. Ra8 {[%emt 0:00:59]} h4 {[%emt 0:02:51]} 34. gxh4 {[%emt 0:08:14]} Rxh4 {[%emt 0:01:15]} 35. Rb8 {[%emt 0:02:29]} Ra4 {[%emt 0:00:42]} 36. Rb5 {[%emt 0:00:37]} Kg6 {[%emt 0:00:44]} 37. Rc5 {[%emt 0:04:11]} Ra3 {[%emt 0:01:29]} 38. Rb5 {[%emt 0:00:36]} f6 {[%emt 0:01:31]} 39. Rb6 {[%emt 0:04:11]} e5 {[%emt 0:01:04]} 40. a6 {[%emt 0:00:27]} e4 {[%emt 0:00:45]} 41. Rc6 {[%emt 0:48:28]} Kf5 {[%emt 0:30:39]} 42. Rb6 {[%emt 0:01:39]} Ke5 {[%emt 0:00:52]} 43. Rc6 {[%emt 0:02:16]} f5 {[%emt 0:00:00]} 44. Rc5+ {[%emt 0:00:00]} Kf4 {[%emt 0:00:00]} 45. Rc6 {[%emt 0:00:00]} Ra4 {[%emt 0:00:00]} 46. Rf6 {[%emt 0:00:00]} Ra5 {[%emt 0:00:00]} 47. Rb6 {[%emt 0:00:00]} Ra1 {[%emt 0:00:00]} 48. Rc6 {[%emt 0:00:00]} Ke5 {[%emt 0:00:00]} 49. Rc5+ $1 {[%emt 0:00:00]} Kf4 {[%emt 0:00:00]} 50. Rc6 {[%emt 0:00:00]} Ra2 {[%emt 0:00:00]} 51. Re6 {[%emt 0:00:00]} g4 {[%emt 0:00:00]} 52. hxg4 {[%emt 0:00:00]} Kxg4 {[%emt 0:00:00]} 53. Rg6+ {[%emt 0:00:00]} Kf4 {[%emt 0:00:00]} 54. Rb6 {[%emt 0:00:00]} Kg5 {[%emt 0:00:24]} 55. Re6 {[%emt 0:00:00]} Ra3 {[%emt 0:01:25]} 56. Kf1 {[%emt 0:00:00]} Kf4 {[%emt 0:00:34]} 57. Kg2 {[%emt 0:00:00]} Ra5 {[%emt 0:00:10]} 58. Rb6 {[%emt 0:00:00]} Ke5 {[%emt 0:00:12]} 59. Rh6 {[%emt 0:01:38]} Ra2 {[%emt 0:00:48]} 60. Rb6 {[%emt 0:01:04]} f4 {[%emt 0:00:31]} 61. Kg1 {[%emt 0:03:37] [#]} (61. Rb5+ $11 Kd4 62. Rb6) 61... f3 $1 $17 {[%emt 0:06:07]} 62. Rb5+ {[%emt 0:02:57]} Kf4 {[%emt 0:02:09]} 63. Rb6 {[%emt 0:00:28]} Kf5 {[%emt 0:01:39]} 64. Rb5+ {[%emt 0:00:27]} Kg4 {[%emt 0:00:26]} 65. Rb4 $2 {[%emt 0:00:43][%mdl 8192] [#]} (65. a7 $17) 65... Kh3 $1 {[%emt 0:00:38]} ({Worse is} 65... Rxa6 66. Rxe4+ Kh3 67. Re1 $11) 66. Rb1 {[%emt 0:01:11]} e3 {[%emt 0:01:20]} 67. fxe3 {[%emt 0:01:04]} Kg3 {[%emt 0:00:06]} 68. e4 {[%emt 0:01:03]} Rg2+ {[%emt 0:00:12]} 0-1

[Event "45th FIDE Olympiad 2024"]
[Site "Budapest"]
[Date "2024.09.12"]
[Round "2.4"]
[White "Kefalas, Loukas"]
[Black "Naipal, Hoolan"]
[Result "1-0"]
[ECO "B19"]
[WhiteElo "1912"]
[BlackElo "1851"]
[Annotator "NA"]
[PlyCount "83"]
[EventDate "2024.09.05"]
[EventType "team-tourn"]
[EventCountry "HUN"]
[SourceTitle "playchess.com"]
[Source "ChessBase"]
[SourceQuality "1"]
[WhiteTeam "Cyprus"]
[BlackTeam "Mauritius"]
[WhiteTeamCountry "CYP"]
[BlackTeamCountry "MRI"]
[TimeControl "40/5400+30:1800+30"]

1. e4 c6 2. d4 d5 3. Nc3 dxe4 4. Nxe4 Bf5 5. Ng3 Bg6 6. Nf3 Nd7 7. h4 h6 8. Bd3 Bxd3 9. Qxd3 Ngf6 10. Bf4 Qa5+ 11. Bd2 Qc7 12. O-O-O e6 13. Ne4 Nxe4 14. Qxe4 Nf6 15. Qe2 Bd6 16. Kb1 b5 17. Ne1 a5 18. Nd3 Nd5 19. c3 Rb8 20. Ka1 a4 21. Rc1 Nb6 22. Rhd1 Nc4 23. Be1 Qe7 24. f4 a3 25. b3 Nb2 26. Qe4 Nxd1 27. Rxd1 O-O 28. Bf2 Rbc8 29. Re1 Qc7 30. g4 Qa5 31. b4 Qa4 32. Kb1 Rfd8 33. g5 hxg5 34. hxg5 g6 35. Qh1 Qa8 36. Qh3 Kf8 37. Qh8+ Ke7 38. Qf6+ Ke8 39. Rh1 Be7 40. Qg7 Kd7 41. Qxf7 Rh8 42. Nc5+ 1-0